[Event "Titled Tuesday Blitz July 11 Late 2023"]
[White "Peycheva, Gergana"]
[Black "EsmeraldasAnderson03"]
[WhiteFideId "2916711"]
[WhiteElo "2480"]
[BlackElo "2367"]
[Result "0-1"]
[Round "11"]
[TimeControl "180+2"]
[Date "2023.07.11"]
[WhiteClock "0:00:04"]
[BlackClock "0:00:08"]
[Board "79"]

1. d4 {[%clk 0:02:56]}  d5 {[%clk 0:02:58]} 2. c4 {[%clk 0:02:56]}  dxc4 {[%clk 0:02:59]} 3. e3 {[%clk 0:02:54]}  a6 {[%clk 0:03:00]} 4. Bxc4 {[%clk 0:02:53]}  Nf6 {[%clk 0:03:00]} 5. Nf3 {[%clk 0:02:52]}  e6 {[%clk 0:03:01]} 6. O-O {[%clk 0:02:51]}  c5 {[%clk 0:03:01]} 7. b3 {[%clk 0:02:49]}  Be7 {[%clk 0:02:59]} 8. Bb2 {[%clk 0:02:49]}  O-O {[%clk 0:02:59]} 9. Re1 {[%clk 0:02:49]}  b5 {[%clk 0:02:55]} 10. Bd3 {[%clk 0:02:48]}  Bb7 {[%clk 0:02:55]} 11. dxc5 {[%clk 0:02:46]}  Bxc5 {[%clk 0:02:56]} 12. Nd4 {[%clk 0:02:46]}  Nc6 {[%clk 0:02:40]} 13. Nxc6 {[%clk 0:02:29]}  Bxc6 {[%clk 0:02:41]} 14. Qc2 {[%clk 0:02:28]}  Nd7 {[%clk 0:01:48]} 15. Bxh7+ {[%clk 0:02:23]}  Kh8 {[%clk 0:01:46]} 16. Be4 {[%clk 0:02:22]}  Bxe4 {[%clk 0:01:40]} 17. Qxe4 {[%clk 0:02:23]}  Nf6 {[%clk 0:01:39]} 18. Qe5 {[%clk 0:02:06]}  Bd6 {[%clk 0:00:46]} 19. Qg5 {[%clk 0:02:03]}  Be7 {[%clk 0:00:44]} 20. Nc3 {[%clk 0:01:57]}  Nd5 {[%clk 0:00:41]} 21. Qh5+ {[%clk 0:01:53]}  Kg8 {[%clk 0:00:41]} 22. Nxd5 {[%clk 0:01:48]}  Qxd5 {[%clk 0:00:42]} 23. Qxd5 {[%clk 0:01:47]}  exd5 {[%clk 0:00:43]} 24. Red1 {[%clk 0:01:47]}  Rfd8 {[%clk 0:00:44]} 25. Rd2 {[%clk 0:01:45]}  Bb4 {[%clk 0:00:42]} 26. Rd4 {[%clk 0:01:37]}  Bc5 {[%clk 0:00:42]} 27. Rd3 {[%clk 0:01:37]}  Rac8 {[%clk 0:00:37]} 28. Rad1 {[%clk 0:01:36]}  Bb6 {[%clk 0:00:36]} 29. g3 {[%clk 0:01:15]}  Rc2 {[%clk 0:00:37]} 30. R1d2 {[%clk 0:01:05]}  Rdc8 {[%clk 0:00:36]} 31. Rxd5 {[%clk 0:00:59]}  Ba5 {[%clk 0:00:35]} 32. Rxc2 {[%clk 0:00:55]}  Rxc2 {[%clk 0:00:36]} 33. Bd4 {[%clk 0:00:49]}  Rxa2 {[%clk 0:00:36]} 34. Rg5 {[%clk 0:00:48]}  g6 {[%clk 0:00:27]} 35. Rc5 {[%clk 0:00:42]}  Kf8 {[%clk 0:00:25]} 36. Bf6 {[%clk 0:00:41]}  Ke8 {[%clk 0:00:25]} 37. Re5+ {[%clk 0:00:29]}  Kd7 {[%clk 0:00:25]} 38. Re7+ {[%clk 0:00:29]}  Kd6 {[%clk 0:00:26]} 39. Rxf7 {[%clk 0:00:29]}  Ke6 {[%clk 0:00:27]} 40. Rf8 {[%clk 0:00:28]}  Bb4 {[%clk 0:00:27]} 41. Rb8 {[%clk 0:00:17]}  Kxf6 {[%clk 0:00:27]} 42. h4 {[%clk 0:00:18]}  Be1 {[%clk 0:00:21]} 43. Kg2 {[%clk 0:00:13]}  Rxf2+ {[%clk 0:00:20]} 44. Kh3 {[%clk 0:00:13]}  Rf3 {[%clk 0:00:20]} 45. Rb6+ {[%clk 0:00:12]}  Kg7 {[%clk 0:00:20]} 46. Rxa6 {[%clk 0:00:13]}  Rxg3+ {[%clk 0:00:21]} 47. Kh2 {[%clk 0:00:12]}  Rxe3 {[%clk 0:00:22]} 48. b4 {[%clk 0:00:10]}  Bxb4 {[%clk 0:00:21]} 49. Rb6 {[%clk 0:00:11]}  Re5 {[%clk 0:00:22]} 50. Kg3 {[%clk 0:00:11]}  Bc3 {[%clk 0:00:20]} 51. Kf4 {[%clk 0:00:12]}  b4 {[%clk 0:00:17]} 52. Rb7+ {[%clk 0:00:12]}  Kh6 {[%clk 0:00:17]} 53. Rb8 {[%clk 0:00:09]}  Rh5 {[%clk 0:00:11]} 54. Kg4 {[%clk 0:00:07]}  Rc5 {[%clk 0:00:11]} 55. Rb7 {[%clk 0:00:04]}  Rc4+ {[%clk 0:00:11]} 56. Kg3 {[%clk 0:00:04]}  Re4 {[%clk 0:00:09]} 57. Kh3 {[%clk 0:00:03]}  Re1 {[%clk 0:00:06]} 58. Kg4 {[%clk 0:00:04]}  Rg1+ {[%clk 0:00:06]} 59. Kh3 {[%clk 0:00:04]}  Rb1 {[%clk 0:00:07]} 60. Kg4 {[%clk 0:00:04]}  b3 {[%clk 0:00:08]} 61. Rb8 {[%clk 0:00:05]}  b2 {[%clk 0:00:08]} 62. Rh8+ {[%clk 0:00:05]}  Bxh8 {[%clk 0:00:07]} 63. Kf4 {[%clk 0:00:04]}  Rf1+ {[%clk 0:00:08]} 0-1


[Site "https://www.chess.com"]

[Event "Titled Tuesday Blitz July 11 Late 2023"]
[White "Papayan, Oleg"]
[Black "micke12a"]
[WhiteFideId "4193911"]
[WhiteElo "2475"]
[BlackElo "2363"]
[Result "0-1"]
[Round "11"]
[TimeControl "180+2"]
[Date "2023.07.11"]
[WhiteClock "0:00:00"]
[BlackClock "0:01:43"]
[Board "80"]

1. e4 {[%clk 0:03:00]}  c5 {[%clk 0:02:57]} 2. Nf3 {[%clk 0:03:00]}  d6 {[%clk 0:02:57]} 3. d4 {[%clk 0:03:00]}  cxd4 {[%clk 0:02:58]} 4. Nxd4 {[%clk 0:03:01]}  Nf6 {[%clk 0:02:58]} 5. Nc3 {[%clk 0:03:01]}  g6 {[%clk 0:02:58]} 6. Be3 {[%clk 0:03:01]}  Bg7 {[%clk 0:02:59]} 7. Qd2 {[%clk 0:03:00]}  O-O {[%clk 0:03:00]} 8. f3 {[%clk 0:03:01]}  Nc6 {[%clk 0:02:59]} 9. O-O-O {[%clk 0:03:01]}  Bd7 {[%clk 0:03:00]} 10. h4 {[%clk 0:03:00]}  Rc8 {[%clk 0:02:59]} 11. g4 {[%clk 0:03:00]}  Ne5 {[%clk 0:02:59]} 12. h5 {[%clk 0:02:58]}  Qa5 {[%clk 0:02:59]} 13. hxg6 {[%clk 0:02:52]}  fxg6 {[%clk 0:02:53]} 14. Kb1 {[%clk 0:02:19]}  Nxf3 {[%clk 0:02:47]} 15. Nxf3 {[%clk 0:02:18]}  Rxc3 {[%clk 0:02:46]} 16. Qxc3 {[%clk 0:02:19]}  Qxc3 {[%clk 0:02:45]} 17. bxc3 {[%clk 0:02:20]}  Nxe4 {[%clk 0:02:46]} 18. Bc4+ {[%clk 0:02:14]}  e6 {[%clk 0:02:44]} 19. Bd4 {[%clk 0:01:39]}  Rxf3 {[%clk 0:02:40]} 20. Bxg7 {[%clk 0:01:39]}  Kxg7 {[%clk 0:02:39]} 21. Rd3 {[%clk 0:01:33]}  Rf2 {[%clk 0:02:31]} 22. Rhd1 {[%clk 0:01:08]}  d5 {[%clk 0:02:25]} 23. Kb2 {[%clk 0:00:51]}  Bc6 {[%clk 0:02:19]} 24. Bb3 {[%clk 0:00:50]}  a5 {[%clk 0:02:19]} 25. a4 {[%clk 0:00:47]}  Rg2 {[%clk 0:02:14]} 26. c4 {[%clk 0:00:45]}  Nc5 {[%clk 0:02:09]} 27. cxd5 {[%clk 0:00:38]}  Nxd3+ {[%clk 0:02:08]} 28. Rxd3 {[%clk 0:00:39]}  exd5 {[%clk 0:02:05]} 29. Bxd5 {[%clk 0:00:39]}  Bxa4 {[%clk 0:02:02]} 30. Bb3 {[%clk 0:00:35]}  Bc6 {[%clk 0:01:54]} 31. Rd4 {[%clk 0:00:32]}  Kf6 {[%clk 0:01:47]} 32. Kc3 {[%clk 0:00:29]}  Ke5 {[%clk 0:01:46]} 33. Kc4 {[%clk 0:00:00]}  a4 {[%clk 0:01:43]} 0-1


[Site "https://www.chess.com"]

[Event "Titled Tuesday Blitz July 11 Late 2023"]
[White "Liu, Casper"]
[Black "Antonio, Jorge Carlos"]
[WhiteFideId "1454153"]
[BlackFideId "113190"]
[WhiteElo "2468"]
[BlackElo "2307"]
[Result "1-0"]
[Round "11"]
[TimeControl "180+2"]
[Date "2023.07.11"]
[WhiteClock "0:00:38"]
[BlackClock "0:00:32"]
[Board "81"]

1. d4 {[%clk 0:02:56]}  d5 {[%clk 0:02:59]} 2. Bf4 {[%clk 0:02:56]}  c6 {[%clk 0:02:58]} 3. Nf3 {[%clk 0:02:57]}  Nf6 {[%clk 0:02:57]} 4. e3 {[%clk 0:02:57]}  Bg4 {[%clk 0:02:56]} 5. Nbd2 {[%clk 0:02:57]}  e6 {[%clk 0:02:56]} 6. c3 {[%clk 0:02:57]}  Bd6 {[%clk 0:02:54]} 7. Bg3 {[%clk 0:02:57]}  Bxg3 {[%clk 0:02:53]} 8. hxg3 {[%clk 0:02:58]}  h6 {[%clk 0:02:53]} 9. Bd3 {[%clk 0:02:58]}  Nbd7 {[%clk 0:02:49]} 10. Rh4 {[%clk 0:02:49]}  Qb6 {[%clk 0:02:36]} 11. Qc2 {[%clk 0:02:46]}  Bxf3 {[%clk 0:02:31]} 12. gxf3 {[%clk 0:02:43]}  O-O-O {[%clk 0:02:30]} 13. Kf1 {[%clk 0:02:38]}  Kb8 {[%clk 0:02:30]} 14. c4 {[%clk 0:02:37]}  Qc7 {[%clk 0:02:24]} 15. c5 {[%clk 0:02:34]}  e5 {[%clk 0:02:23]} 16. b4 {[%clk 0:02:29]}  exd4 {[%clk 0:02:21]} 17. exd4 {[%clk 0:02:30]}  Nf8 {[%clk 0:02:17]} 18. a4 {[%clk 0:02:26]}  Ng6 {[%clk 0:02:15]} 19. Bxg6 {[%clk 0:02:26]}  fxg6 {[%clk 0:02:15]} 20. Qxg6 {[%clk 0:02:26]}  Rde8 {[%clk 0:02:09]} 21. b5 {[%clk 0:02:21]}  Qe7 {[%clk 0:02:08]} 22. Kg2 {[%clk 0:02:15]}  Rc8 {[%clk 0:01:55]} 23. Rb1 {[%clk 0:02:09]}  Ka8 {[%clk 0:01:53]} 24. a5 {[%clk 0:02:02]}  Rhf8 {[%clk 0:01:41]} 25. a6 {[%clk 0:01:56]}  bxa6 {[%clk 0:01:30]} 26. bxa6 {[%clk 0:01:53]}  Rb8 {[%clk 0:01:29]} 27. Rhh1 {[%clk 0:01:52]}  Rxb1 {[%clk 0:01:20]} 28. Rxb1 {[%clk 0:01:48]}  Rb8 {[%clk 0:01:20]} 29. Qf5 {[%clk 0:01:27]}  Rxb1 {[%clk 0:01:18]} 30. Nxb1 {[%clk 0:01:26]}  Qd7 {[%clk 0:01:16]} 31. Qe5 {[%clk 0:01:13]}  Ne8 {[%clk 0:01:01]} 32. Nc3 {[%clk 0:00:44]}  Nc7 {[%clk 0:01:00]} 33. Qe2 {[%clk 0:00:44]}  Qc8 {[%clk 0:00:59]} 34. Qe5 {[%clk 0:00:41]}  Qxa6 {[%clk 0:00:49]} 35. Qxg7 {[%clk 0:00:41]}  Qc4 {[%clk 0:00:46]} 36. Qxc7 {[%clk 0:00:39]}  Qxc3 {[%clk 0:00:42]} 37. Qxc6+ {[%clk 0:00:39]}  Kb8 {[%clk 0:00:42]} 38. Qxd5 {[%clk 0:00:40]}  a5 {[%clk 0:00:41]} 39. c6 {[%clk 0:00:37]}  Kc7 {[%clk 0:00:32]} 40. Qd7+ {[%clk 0:00:37]}  Kb6 {[%clk 0:00:32]} 41. Qb7# {[%clk 0:00:38]} 1-0


[Site "https://www.chess.com"]

[Event "Titled Tuesday Blitz July 11 Late 2023"]
[White "rionelG"]
[Black "Srdanovic, Jovana"]
[BlackFideId "954810"]
[WhiteElo "2278"]
[BlackElo "2405"]
[Result "1-0"]
[Round "11"]
[TimeControl "180+2"]
[Date "2023.07.11"]
[WhiteClock "0:00:09"]
[BlackClock "0:00:11"]
[Board "84"]

1. e4 {[%clk 0:02:35]}  c6 {[%clk 0:02:59]} 2. d4 {[%clk 0:02:34]}  d5 {[%clk 0:02:59]} 3. e5 {[%clk 0:02:35]}  Bf5 {[%clk 0:02:57]} 4. Nf3 {[%clk 0:02:35]}  e6 {[%clk 0:02:56]} 5. Be2 {[%clk 0:02:35]}  Nd7 {[%clk 0:02:52]} 6. O-O {[%clk 0:02:35]}  Qb6 {[%clk 0:02:51]} 7. Nc3 {[%clk 0:02:28]}  h6 {[%clk 0:02:44]} 8. a4 {[%clk 0:02:19]}  Bb4 {[%clk 0:02:34]} 9. Bd2 {[%clk 0:02:10]}  a5 {[%clk 0:02:33]} 10. Nb1 {[%clk 0:02:04]}  Bxd2 {[%clk 0:02:31]} 11. Nbxd2 {[%clk 0:02:04]}  Ne7 {[%clk 0:02:28]} 12. c4 {[%clk 0:02:01]}  O-O {[%clk 0:02:17]} 13. c5 {[%clk 0:01:48]}  Qc7 {[%clk 0:02:11]} 14. Rc1 {[%clk 0:01:41]}  f6 {[%clk 0:02:02]} 15. exf6 {[%clk 0:01:38]}  Rxf6 {[%clk 0:02:00]} 16. Re1 {[%clk 0:01:35]}  Raf8 {[%clk 0:01:55]} 17. Nf1 {[%clk 0:01:33]}  Be4 {[%clk 0:01:48]} 18. Ng3 {[%clk 0:01:31]}  e5 {[%clk 0:01:37]} 19. dxe5 {[%clk 0:01:22]}  Nxe5 {[%clk 0:01:36]} 20. Nxe5 {[%clk 0:01:21]}  Qxe5 {[%clk 0:01:34]} 21. Nxe4 {[%clk 0:00:20]}  dxe4 {[%clk 0:01:29]} 22. Bf3 {[%clk 0:00:18]}  Rxf3 {[%clk 0:00:42]} 23. gxf3 {[%clk 0:00:18]}  Qg5+ {[%clk 0:00:18]} 24. Kh1 {[%clk 0:00:18]}  exf3 {[%clk 0:00:16]} 25. Rg1 {[%clk 0:00:18]}  Qh4 {[%clk 0:00:15]} 26. Qd6 {[%clk 0:00:17]}  Nf5 {[%clk 0:00:12]} 27. Qe6+ {[%clk 0:00:16]}  Kh8 {[%clk 0:00:13]} 28. Rcd1 {[%clk 0:00:15]}  Qxf2 {[%clk 0:00:11]} 29. Qg6 {[%clk 0:00:10]}  Qxc5 {[%clk 0:00:08]} 30. Rdf1 {[%clk 0:00:10]}  f2 {[%clk 0:00:08]} 31. Rg2 {[%clk 0:00:10]}  Qc4 {[%clk 0:00:05]} 32. Rgxf2 {[%clk 0:00:10]}  Qe4+ {[%clk 0:00:05]} 33. Qg2 {[%clk 0:00:08]}  Qxg2+ {[%clk 0:00:05]} 34. Kxg2 {[%clk 0:00:06]}  Ne3+ {[%clk 0:00:05]} 35. Kg1 {[%clk 0:00:05]}  Rd8 {[%clk 0:00:03]} 36. Rf8+ {[%clk 0:00:04]}  Rxf8 {[%clk 0:00:03]} 37. Rxf8+ {[%clk 0:00:05]}  Kh7 {[%clk 0:00:04]} 38. Rb8 {[%clk 0:00:06]}  Nc4 {[%clk 0:00:03]} 39. Rxb7 {[%clk 0:00:06]}  Kg6 {[%clk 0:00:03]} 40. Kf2 {[%clk 0:00:06]}  Kf6 {[%clk 0:00:03]} 41. Ke2 {[%clk 0:00:06]}  Ke5 {[%clk 0:00:04]} 42. Kd3 {[%clk 0:00:06]}  Kd5 {[%clk 0:00:04]} 43. Rxg7 {[%clk 0:00:05]}  Nxb2+ {[%clk 0:00:04]} 44. Ke3 {[%clk 0:00:04]}  Nxa4 {[%clk 0:00:05]} 45. Rh7 {[%clk 0:00:04]}  Nc5 {[%clk 0:00:04]} 46. Rxh6 {[%clk 0:00:04]}  a4 {[%clk 0:00:05]} 47. Kd2 {[%clk 0:00:03]}  a3 {[%clk 0:00:05]} 48. Kc3 {[%clk 0:00:03]}  Ne4+ {[%clk 0:00:04]} 49. Kb3 {[%clk 0:00:03]}  c5 {[%clk 0:00:04]} 50. Kxa3 {[%clk 0:00:03]}  Kd4 {[%clk 0:00:04]} 51. Kb2 {[%clk 0:00:03]}  Kd3 {[%clk 0:00:05]} 52. Kc1 {[%clk 0:00:03]}  c4 {[%clk 0:00:05]} 53. Rh3+ {[%clk 0:00:03]}  Kd4 {[%clk 0:00:04]} 54. Rh4 {[%clk 0:00:03]}  Kd3 {[%clk 0:00:04]} 55. Rf4 {[%clk 0:00:03]}  Nc3 {[%clk 0:00:04]} 56. Rf3+ {[%clk 0:00:03]}  Kd4 {[%clk 0:00:04]} 57. h4 {[%clk 0:00:02]}  Ne2+ {[%clk 0:00:04]} 58. Kd2 {[%clk 0:00:02]}  Ng1 {[%clk 0:00:01]} 59. Rf4+ {[%clk 0:00:01]}  Ke5 {[%clk 0:00:01]} 60. Rxc4 {[%clk 0:00:01]}  Nh3 {[%clk 0:00:01]} 61. Ke3 {[%clk 0:00:02]}  Ng1 {[%clk 0:00:02]} 62. Kf2 {[%clk 0:00:02]}  Kf6 {[%clk 0:00:02]} 63. Kxg1 {[%clk 0:00:02]}  Kg6 {[%clk 0:00:03]} 64. Kf2 {[%clk 0:00:02]}  Kh5 {[%clk 0:00:04]} 65. Kg3 {[%clk 0:00:03]}  Kg6 {[%clk 0:00:05]} 66. Rc5 {[%clk 0:00:04]}  Kh7 {[%clk 0:00:06]} 67. Kg4 {[%clk 0:00:05]}  Kh8 {[%clk 0:00:06]} 68. h5 {[%clk 0:00:06]}  Kh7 {[%clk 0:00:07]} 69. Rc6 {[%clk 0:00:06]}  Kh8 {[%clk 0:00:08]} 70. Kg5 {[%clk 0:00:07]}  Kh7 {[%clk 0:00:09]} 71. Rc7+ {[%clk 0:00:08]}  Kh8 {[%clk 0:00:10]} 72. Kg6 {[%clk 0:00:08]}  Kg8 {[%clk 0:00:11]} 73. Rc8# {[%clk 0:00:09]} 1-0


[Site "https://www.chess.com"]

[Event "Titled Tuesday Blitz July 11 Late 2023"]
[White "Ncatt"]
[Black "arturdailima"]
[WhiteElo "2400"]
[BlackElo "2267"]
[Result "1-0"]
[Round "11"]
[TimeControl "180+2"]
[Date "2023.07.11"]
[WhiteClock "0:00:18"]
[BlackClock "0:00:03"]
[Board "85"]

1. e4 {[%clk 0:03:00]}  c5 {[%clk 0:02:59]} 2. Nf3 {[%clk 0:03:01]}  d6 {[%clk 0:03:00]} 3. d4 {[%clk 0:03:00]}  cxd4 {[%clk 0:03:00]} 4. Nxd4 {[%clk 0:03:01]}  Nf6 {[%clk 0:03:01]} 5. Nc3 {[%clk 0:03:01]}  a6 {[%clk 0:03:01]} 6. h3 {[%clk 0:03:01]}  e6 {[%clk 0:02:57]} 7. g4 {[%clk 0:03:01]}  Nfd7 {[%clk 0:02:58]} 8. Be3 {[%clk 0:02:59]}  b5 {[%clk 0:02:52]} 9. Bg2 {[%clk 0:02:57]}  Bb7 {[%clk 0:02:52]} 10. f4 {[%clk 0:02:54]}  Be7 {[%clk 0:02:49]} 11. Qe2 {[%clk 0:02:52]}  Qc7 {[%clk 0:02:47]} 12. O-O-O {[%clk 0:02:51]}  Nc6 {[%clk 0:02:46]} 13. Nb3 {[%clk 0:02:40]}  Nc5 {[%clk 0:02:31]} 14. f5 {[%clk 0:02:33]}  Ne5 {[%clk 0:02:18]} 15. fxe6 {[%clk 0:02:28]}  Nxe6 {[%clk 0:02:07]} 16. Nd5 {[%clk 0:02:26]}  Qd8 {[%clk 0:02:00]} 17. Bb6 {[%clk 0:02:19]}  Qd7 {[%clk 0:01:57]} 18. Nxe7 {[%clk 0:02:10]}  Qxe7 {[%clk 0:01:51]} 19. Na5 {[%clk 0:02:07]}  O-O {[%clk 0:01:43]} 20. Rd2 {[%clk 0:01:59]}  Rac8 {[%clk 0:01:40]} 21. Rhd1 {[%clk 0:01:58]}  Nf4 {[%clk 0:00:59]} 22. Qf2 {[%clk 0:01:52]}  Nxg2 {[%clk 0:00:58]} 23. Qxg2 {[%clk 0:01:50]}  Nc4 {[%clk 0:00:58]} 24. Nxc4 {[%clk 0:01:48]}  Rxc4 {[%clk 0:00:57]} 25. Qg3 {[%clk 0:01:40]}  Bxe4 {[%clk 0:00:52]} 26. c3 {[%clk 0:01:37]}  d5 {[%clk 0:00:46]} 27. g5 {[%clk 0:01:33]}  b4 {[%clk 0:00:45]} 28. Bd4 {[%clk 0:01:31]}  bxc3 {[%clk 0:00:43]} 29. Bxc3 {[%clk 0:01:31]}  a5 {[%clk 0:00:23]} 30. h4 {[%clk 0:01:29]}  a4 {[%clk 0:00:23]} 31. Rd4 {[%clk 0:01:19]}  Rxd4 {[%clk 0:00:18]} 32. Bxd4 {[%clk 0:01:12]}  Rc8+ {[%clk 0:00:18]} 33. Bc3 {[%clk 0:01:11]}  a3 {[%clk 0:00:17]} 34. Qe3 {[%clk 0:01:07]}  axb2+ {[%clk 0:00:17]} 35. Kxb2 {[%clk 0:01:06]}  Qb7+ {[%clk 0:00:18]} 36. Ka1 {[%clk 0:01:03]}  Rb8 {[%clk 0:00:18]} 37. Qc1 {[%clk 0:00:53]}  Qc6 {[%clk 0:00:17]} 38. Qd2 {[%clk 0:00:52]}  Qb5 {[%clk 0:00:16]} 39. Bb2 {[%clk 0:00:49]}  Ra8 {[%clk 0:00:14]} 40. Qd4 {[%clk 0:00:42]}  f6 {[%clk 0:00:10]} 41. gxf6 {[%clk 0:00:34]}  Qa4 {[%clk 0:00:07]} 42. f7+ {[%clk 0:00:31]}  Kxf7 {[%clk 0:00:05]} 43. Qxg7+ {[%clk 0:00:31]}  Ke6 {[%clk 0:00:05]} 44. Qf6+ {[%clk 0:00:30]}  Kd7 {[%clk 0:00:06]} 45. Qf7+ {[%clk 0:00:29]}  Kd6 {[%clk 0:00:06]} 46. Qf6+ {[%clk 0:00:23]}  Kd7 {[%clk 0:00:07]} 47. Qg7+ {[%clk 0:00:23]}  Kd6 {[%clk 0:00:07]} 48. Be5+ {[%clk 0:00:22]}  Kc6 {[%clk 0:00:07]} 49. Qc7+ {[%clk 0:00:19]}  Kb5 {[%clk 0:00:08]} 50. Qb7+ {[%clk 0:00:19]}  Kc4 {[%clk 0:00:07]} 51. Rc1+ {[%clk 0:00:18]}  Kd3 {[%clk 0:00:07]} 52. Qb1+ {[%clk 0:00:17]}  Ke3 {[%clk 0:00:06]} 53. Rc3+ {[%clk 0:00:17]}  Kf2 {[%clk 0:00:05]} 54. Qb2+ {[%clk 0:00:17]}  Ke1 {[%clk 0:00:03]} 55. Rc1+ {[%clk 0:00:17]}  Qd1 {[%clk 0:00:03]} 56. Bg3+ {[%clk 0:00:17]}  Kf1 {[%clk 0:00:03]} 57. Rxd1# {[%clk 0:00:18]} 1-0


[Site "https://www.chess.com"]

[Event "Titled Tuesday Blitz July 11 Late 2023"]
[White "Haitin, Ilja"]
[Black "Stachanczyk, Jacek"]
[WhiteFideId "4501764"]
[BlackFideId "1116657"]
[WhiteElo "2388"]
[BlackElo "2375"]
[Result "0-1"]
[Round "11"]
[TimeControl "180+2"]
[Date "2023.07.11"]
[WhiteClock "0:01:49"]
[BlackClock "0:01:44"]
[Board "88"]

1. Nf3 {[%clk 0:03:00]}  Nf6 {[%clk 0:02:59]} 2. b3 {[%clk 0:03:00]}  g6 {[%clk 0:02:59]} 3. Bb2 {[%clk 0:03:01]}  Bg7 {[%clk 0:02:59]} 4. e3 {[%clk 0:03:01]}  O-O {[%clk 0:02:59]} 5. d4 {[%clk 0:03:02]}  d6 {[%clk 0:02:58]} 6. Be2 {[%clk 0:03:02]}  Nbd7 {[%clk 0:02:58]} 7. O-O {[%clk 0:03:03]}  b6 {[%clk 0:02:56]} 8. c4 {[%clk 0:03:03]}  Bb7 {[%clk 0:02:57]} 9. Nc3 {[%clk 0:03:04]}  Re8 {[%clk 0:02:54]} 10. Rc1 {[%clk 0:03:04]}  Ne4 {[%clk 0:02:47]} 11. Qc2 {[%clk 0:03:04]}  Nxc3 {[%clk 0:02:47]} 12. Bxc3 {[%clk 0:03:04]}  e5 {[%clk 0:02:44]} 13. Rfd1 {[%clk 0:03:05]}  Qe7 {[%clk 0:02:43]} 14. Bb2 {[%clk 0:03:02]}  Rac8 {[%clk 0:02:36]} 15. Ba3 {[%clk 0:03:01]}  Bxf3 {[%clk 0:02:30]} 16. Bxf3 {[%clk 0:03:00]}  exd4 {[%clk 0:02:31]} 17. exd4 {[%clk 0:02:50]}  Bxd4 {[%clk 0:02:14]} 18. h4 {[%clk 0:02:50]}  Bg7 {[%clk 0:02:13]} 19. h5 {[%clk 0:02:50]}  Ne5 {[%clk 0:02:13]} 20. Be2 {[%clk 0:02:43]}  Qh4 {[%clk 0:02:08]} 21. hxg6 {[%clk 0:02:41]}  hxg6 {[%clk 0:02:09]} 22. Bb2 {[%clk 0:02:34]}  Re7 {[%clk 0:02:02]} 23. g3 {[%clk 0:02:08]}  Qh3 {[%clk 0:01:59]} 24. Rd4 {[%clk 0:01:58]}  Rce8 {[%clk 0:01:45]} 25. Rh4 {[%clk 0:01:56]}  Nf3+ {[%clk 0:01:44]} 26. Bxf3 {[%clk 0:01:49]}  Re1+ {[%clk 0:01:44]} 0-1


[Site "https://www.chess.com"]

[Event "Titled Tuesday Blitz July 11 Late 2023"]
[White "Thiel, Thomas"]
[Black "Cardenas Carbajal, Nilson"]
[WhiteFideId "4615964"]
[BlackFideId "8401128"]
[WhiteElo "2230"]
[BlackElo "2190"]
[Result "1-0"]
[Round "11"]
[TimeControl "180+2"]
[Date "2023.07.11"]
[WhiteClock "0:00:09"]
[BlackClock "0:00:09"]
[Board "90"]

1. e4 {[%clk 0:03:00]}  e5 {[%clk 0:02:57]} 2. Nf3 {[%clk 0:02:58]}  Nc6 {[%clk 0:02:57]} 3. d4 {[%clk 0:02:57]}  exd4 {[%clk 0:02:56]} 4. Nxd4 {[%clk 0:02:58]}  Nf6 {[%clk 0:02:46]} 5. Nxc6 {[%clk 0:02:57]}  bxc6 {[%clk 0:02:45]} 6. e5 {[%clk 0:02:57]}  Qe7 {[%clk 0:02:45]} 7. Qe2 {[%clk 0:02:58]}  Nd5 {[%clk 0:02:43]} 8. h4 {[%clk 0:02:58]}  h6 {[%clk 0:02:40]} 9. c4 {[%clk 0:02:51]}  Nb6 {[%clk 0:02:37]} 10. Nc3 {[%clk 0:02:44]}  Ba6 {[%clk 0:02:34]} 11. b3 {[%clk 0:02:43]}  O-O-O {[%clk 0:02:33]} 12. Bb2 {[%clk 0:02:28]}  g6 {[%clk 0:02:30]} 13. O-O-O {[%clk 0:02:17]}  Bg7 {[%clk 0:02:25]} 14. f4 {[%clk 0:02:16]}  Rhe8 {[%clk 0:02:14]} 15. Qf2 {[%clk 0:02:01]}  g5 {[%clk 0:02:09]} 16. hxg5 {[%clk 0:01:58]}  hxg5 {[%clk 0:02:09]} 17. g3 {[%clk 0:01:59]}  gxf4 {[%clk 0:02:08]} 18. gxf4 {[%clk 0:01:57]}  Rh8 {[%clk 0:01:49]} 19. Bh3 {[%clk 0:01:52]}  Kb8 {[%clk 0:01:44]} 20. Ne4 {[%clk 0:01:50]}  Bb7 {[%clk 0:01:30]} 21. Nc5 {[%clk 0:01:45]}  d6 {[%clk 0:01:26]} 22. Nxb7 {[%clk 0:01:41]}  Kxb7 {[%clk 0:01:26]} 23. Bg2 {[%clk 0:01:28]}  Rxh1 {[%clk 0:01:23]} 24. Bxh1 {[%clk 0:01:23]}  dxe5 {[%clk 0:01:21]} 25. Rxd8 {[%clk 0:01:18]}  Qxd8 {[%clk 0:01:20]} 26. Qg2 {[%clk 0:01:18]}  Qd7 {[%clk 0:01:03]} 27. Qxg7 {[%clk 0:01:16]}  Qd3 {[%clk 0:00:52]} 28. Qg2 {[%clk 0:01:01]}  Qe3+ {[%clk 0:00:49]} 29. Kb1 {[%clk 0:01:01]}  Qd3+ {[%clk 0:00:47]} 30. Qc2 {[%clk 0:00:55]}  Qf1+ {[%clk 0:00:46]} 31. Qc1 {[%clk 0:00:53]}  Qxf4 {[%clk 0:00:46]} 32. Qxf4 {[%clk 0:00:53]}  exf4 {[%clk 0:00:47]} 33. Bc1 {[%clk 0:00:51]}  a5 {[%clk 0:00:43]} 34. Bxf4 {[%clk 0:00:50]}  a4 {[%clk 0:00:44]} 35. Kb2 {[%clk 0:00:49]}  axb3 {[%clk 0:00:44]} 36. axb3 {[%clk 0:00:49]}  Nd7 {[%clk 0:00:43]} 37. b4 {[%clk 0:00:44]}  Nf6 {[%clk 0:00:41]} 38. b5 {[%clk 0:00:41]}  Kb6 {[%clk 0:00:39]} 39. Be3+ {[%clk 0:00:38]}  c5 {[%clk 0:00:38]} 40. Kb3 {[%clk 0:00:23]}  Ng4 {[%clk 0:00:38]} 41. Bd2 {[%clk 0:00:17]}  Nf2 {[%clk 0:00:38]} 42. Bg2 {[%clk 0:00:15]}  f5 {[%clk 0:00:36]} 43. Ka4 {[%clk 0:00:14]}  Nd3 {[%clk 0:00:33]} 44. Ba5+ {[%clk 0:00:13]}  Ka7 {[%clk 0:00:31]} 45. Bxc7 {[%clk 0:00:13]}  Nb2+ {[%clk 0:00:20]} 46. Kb3 {[%clk 0:00:11]}  Nd3 {[%clk 0:00:18]} 47. b6+ {[%clk 0:00:11]}  Ka6 {[%clk 0:00:17]} 48. b7 {[%clk 0:00:11]}  f4 {[%clk 0:00:12]} 49. b8=Q {[%clk 0:00:11]}  Nc1+ {[%clk 0:00:10]} 50. Kc2 {[%clk 0:00:09]}  f3 {[%clk 0:00:09]} 51. Qb6# {[%clk 0:00:09]} 1-0


[Site "https://www.chess.com"]